fUST/lending_fUST_20251122
["ID","MTS","AMOUNT","RATE_DAILY","PERIOD"]
[394651895,1763814639976,-160.0,0.00010973,2]
[394651897,1763814639985,-500.0,0.00010973,2]
[394651899,1763814639994,-158.2,0.00010973,2]
[394651900,1763814640003,-158.2,0.00010973,2]
[394651901,1763814640013,-2068.12711232,0.00011018,2]
[394651902,1763814640024,-1645.0,0.00011109,2]
[394651903,1763814640034,-1128.0,0.00011109,2]
[394651904,1763814640047,-3000.0,0.00011122,2]
[394651905,1763814640057,-3000.0,0.00011122,2]
[394651906,1763814640066,-3000.0,0.00011122,2]
[394651907,1763814640075,-3423.39912965,0.00011146,2]
[394651908,1763814640084,-823.0,0.00011181,2]
[394651909,1763814640093,-1239.965224,0.00011192,2]
[394651910,1763814640102,-1645.0,0.00011246,2]
[394651911,1763814640111,-1128.0,0.00011246,2]
[394651912,1763814640120,-1645.0,0.00011383,2]
[394651913,1763814640130,-1128.0,0.00011383,2]
[394651914,1763814640139,-2068.12711239,0.00011436,2]
[394651915,1763814640149,-1645.0,0.0001152,2]
[394651916,1763814640158,-1128.0,0.0001152,2]
[394651917,1763814640166,-1000.0,0.00011521,2]
[394651918,1763814640175,-1000.0,0.00011521,2]
[394651919,1763814640186,-1000.0,0.00011521,2]
[394651920,1763814640196,-1138.58632531,0.00011521,2]
[394651921,1763814640207,-1002.22757551,0.00011521,2]
[394651922,1763814640217,-1000.0,0.00011521,2]
[394651923,1763814640227,-500.0,0.00011521,2]
[394651924,1763814640238,-1000.0,0.00011521,2]
[394651925,1763814640248,-1000.0,0.00011521,2]
[394651926,1763814640258,-3423.39912965,0.00011603,2]
[394651927,1763814640415,-2063.36736514,0.00011612,2]
[394651928,1763814640424,-1667.76448682,0.00011657,2]
[394651929,1763814640435,-1144.31722376,0.00011657,2]
[394651930,1763814640445,-3500.0,0.0001167,2]
[394651931,1763814640454,-3500.0,0.0001167,2]
[394651932,1763814640463,-810.20845471,0.0001167,2]
[394651933,1763814640472,-864.0,0.00011787,2]
[394651934,1763814640482,-1223.10990085,0.00011787,2]
[394651935,1763814640492,-175.0,0.000118,2]
[394651936,1763814640501,-200.0,0.00011953,2]
[394651937,1763814640510,-3423.39912965,0.0001206,2]
[394651938,1763814640519,-287.19498398,0.00012068,2]
[394651939,1763814640529,-1500.0,0.00012068,2]
[394651940,1763814640541,-598.19978832,0.00012068,2]
[394651941,1763814640550,-458.59621709,0.00012068,2]
[394651942,1763814640559,-1500.0,0.00012068,2]
[394651943,1763814640569,-1500.0,0.00012068,2]
[394651944,1763814640578,-4000.0,0.00012218,2]
[394651945,1763814640588,-3939.01328202,0.00012218,2]
[394651946,1763814640598,-1152.0,0.00012299,2]
[394651947,1763814640609,-2548.31,0.00012329,2]
[394651948,1763814640619,-2123.59,0.00012329,2]
[394651949,1763814640628,-1769.66,0.00012329,2]
[394651950,1763814640637,-1474.72,0.00012329,2]
[394651951,1763814640648,-1228.93,0.00012329,2]
[394651952,1763814640657,-1024.11,0.00012329,2]
[394651953,1763814640666,-853.43,0.00012329,2]
[394651954,1763814640675,-711.19,0.00012329,2]
[394651955,1763814640684,-592.66,0.00012329,2]
[394651956,1763814640694,-493.88,0.00012329,2]
[394651957,1763814640703,-411.57,0.00012329,2]
[394651958,1763814640712,-342.97,0.00012329,2]
[394651959,1763814640722,-285.81,0.00012329,2]
[394651960,1763814640732,-238.17,0.00012329,2]
[394651961,1763814640742,-198.48,0.00012329,2]
[394651962,1763814640751,-165.4,0.00012329,2]
[394651963,1763814640760,-827.02,0.00012329,2]
[394651964,1763814640769,-204.0,0.0001236,2]
[394651965,1763814640778,-3423.39912965,0.00012516,2]
[394651966,1763814640787,-500.0,0.000126,2]
[394651967,1763814640796,-2000.0,0.00012616,2]
[394651968,1763814640807,-2000.0,0.00012616,2]
[394651969,1763814640817,-2000.0,0.00012616,2]
[394651970,1763814640827,-4500.0,0.00012766,2]
[394651971,1763814640837,-103665.49323485,0.00012959,2]
[394651972,1763814640846,-1000.0,0.00012966,2]
[394651973,1763814640858,-3423.39912965,0.00012973,2]
[394651974,1763814640868,-414.0,0.0001301,2]
[394651975,1763814640877,-512.072,0.00013053,2]
[394651976,1763814640886,-1000.0,0.000131,2]
[394651977,1763814640897,-1000.0,0.000131,3]
[394651978,1763814640906,-511.88914189,0.00013164,2]
[394651979,1763814640915,-664.88370563,0.00013164,2]
[394651980,1763814640925,-2500.0,0.00013164,2]
[394651981,1763814640934,-160.0,0.00013187,2]
[394651982,1763814640943,-283.41982624,0.00013278,2]
[394651983,1763814640952,-160.0,0.0001328,2]
[394651984,1763814640961,-5000.0,0.00013314,2]
[394651985,1763814640971,-203.86831681,0.00013425,13]
[394651986,1763814640980,-3423.39912965,0.00013429,2]
[394651987,1763814640989,-600.0,0.0001344,2]
[394651988,1763814640998,-856.0,0.00013529,2]
[394651989,1763814641008,-998.7932,0.00013554,2]
[394651990,1763814641017,-600.0,0.0001358,2]
[394651991,1763814641026,-200.0,0.00013607,2]
[394651992,1763814641035,-200.0,0.00013607,2]
[394651993,1763814641045,-200.0,0.00013607,2]
[394651994,1763814641054,-228.27713065,0.00013698,2]
[394651995,1763814641064,-500.0,0.00013698,2]
[394651996,1763814641073,-500.0,0.00013698,2]
[394651997,1763814641083,-500.0,0.00013698,2]
[394651998,1763814641092,-500.0,0.00013698,2]
[394651999,1763814641103,-580.67547641,0.00013698,2]
[394652000,1763814641113,-500.0,0.00013698,2]
[394652001,1763814641123,-500.0,0.00013698,2]
[394652002,1763814641133,-570.03767712,0.00013698,2]
[394652003,1763814641142,-528.30310163,0.00013698,2]
[394652004,1763814641151,-1252.06,0.00013698,2]
[394652005,1763814641161,-1252.06,0.00013698,2]
[394652006,1763814641170,-1252.06,0.00013698,2]
[394652007,1763814641180,-1252.06,0.00013698,2]
[394652008,1763814641189,-1252.06,0.00013698,2]
[394652009,1763814641198,-1252.06,0.00013698,2]
[394652010,1763814641208,-1252.06,0.00013698,2]
[394652011,1763814641217,-1252.06,0.00013698,2]
[394652012,1763814641226,-1252.06,0.00013698,2]
[394652013,1763814641235,-1252.06,0.00013698,2]
[394652014,1763814641244,-1252.06,0.00013698,2]
[394652015,1763814641254,-1252.06,0.00013698,2]
[394652016,1763814641264,-1252.06,0.00013698,2]
[394652017,1763814641275,-1252.06,0.00013698,2]
[394652018,1763814641284,-1252.06,0.00013698,2]
[394652019,1763814641293,-1252.06,0.00013698,2]
[394652020,1763814641302,-1252.06,0.00013698,2]
[394652021,1763814641312,-1252.06,0.00013698,2]
[394652022,1763814641321,-1252.06,0.00013698,2]
[394652023,1763814641330,-1252.06,0.00013698,2]
[394652024,1763814641339,-1252.06,0.00013698,2]
[394652025,1763814641348,-1252.06,0.00013698,2]
[394652026,1763814641357,-1252.06,0.00013698,2]
[394652027,1763814641366,-1252.0996559,0.00013698,2]
[394652028,1763814641375,-533.98802503,0.00013698,2]
[394652029,1763814641384,-337.1839864,0.00013698,2]
[394652030,1763814641393,-500.0,0.00013698,2]
[394652031,1763814641404,-500.0,0.00013698,2]
[394652032,1763814641413,-500.0,0.00013698,2]
[394652033,1763814641422,-500.0,0.00013698,2]
[394652034,1763814641432,-500.0,0.00013698,2]
[394652035,1763814641441,-500.0,0.00013698,2]
[394652036,1763814641450,-500.0,0.00013698,2]
[394652037,1763814641460,-500.0,0.00013698,2]
[394652038,1763814641469,-500.0,0.00013698,2]
[394652039,1763814641478,-500.0,0.00013698,2]
[394652040,1763814641488,-500.0,0.00013698,2]
[394652041,1763814641497,-500.0,0.00013698,2]
[394652042,1763814641506,-500.0,0.00013698,2]
[394652043,1763814641515,-500.0,0.00013698,2]
[394652044,1763814641525,-500.0,0.00013698,2]
[394652045,1763814641538,-500.0,0.00013698,2]
[394652046,1763814641547,-500.0,0.00013698,2]
[394652047,1763814641557,-500.0,0.00013698,2]
[394652048,1763814641566,-396.92813246,0.00013698,2]
[394652049,1763814641577,-6673.94,0.00013698,2]
[394652050,1763814641586,-6673.94,0.00013698,2]
[394652051,1763814641596,-6673.94,0.00013698,2]
[394652052,1763814641605,-6673.94,0.00013698,2]
[394652053,1763814641616,-6673.94,0.00013698,2]
[394652054,1763814641625,-6673.94,0.00013698,2]
[394652055,1763814641635,-6673.94,0.00013698,2]
[394652056,1763814641644,-6673.94,0.00013698,2]
[394652057,1763814641653,-6673.94,0.00013698,2]
[394652058,1763814641662,-6673.94,0.00013698,2]
[394652059,1763814641671,-6673.94,0.00013698,2]
[394652060,1763814641680,-6673.94,0.00013698,2]
[394652061,1763814641690,-6673.94,0.00013698,2]
[394652062,1763814641699,-6673.94,0.00013698,2]
[394652063,1763814641708,-6673.94,0.00013698,2]
[394652064,1763814641717,-6673.94,0.00013698,2]
[394652065,1763814641727,-6673.94,0.00013698,2]
[394652066,1763814641736,-6673.94,0.00013698,2]
[394652067,1763814641745,-6673.94,0.00013698,2]
[394652068,1763814641754,-6673.94,0.00013698,2]
[394652069,1763814641763,-6673.94,0.00013698,2]
[394652070,1763814641772,-6673.94,0.00013698,2]
[394652071,1763814641781,-6673.94,0.00013698,2]
[394652072,1763814641791,-6674.13449323,0.00013698,2]
[394652073,1763814641800,-500.0,0.00013698,2]
[394652074,1763814641810,-500.0,0.00013698,2]
[394652075,1763814641819,-500.0,0.00013698,2]
[394652076,1763814641828,-500.0,0.00013698,2]
[394652077,1763814641837,-413.58811442,0.00013698,2]
[394652078,1763814641846,-500.0,0.00013698,2]
[394652079,1763814641855,-500.0,0.00013698,2]
[394652080,1763814641864,-500.0,0.00013698,2]
[394652081,1763814641873,-500.0,0.00013698,2]
[394652082,1763814641882,-500.0,0.00013698,2]
[394652083,1763814641892,-500.0,0.00013698,2]
[394652084,1763814641902,-500.0,0.00013698,2]
[394652085,1763814641911,-500.0,0.00013698,2]
[394652086,1763814641920,-500.0,0.00013698,2]
[394652087,1763814641930,-296.64547456,0.00013698,2]
[394652088,1763814641940,-1656.17,0.00013698,2]
[394652089,1763814641949,-1656.17,0.00013698,2]
[394652090,1763814641958,-1656.17,0.00013698,2]
[394652091,1763814641968,-1656.17,0.00013698,2]
[394652092,1763814641977,-1656.17,0.00013698,2]
[394652093,1763814641986,-1656.17,0.00013698,2]
[394652094,1763814641995,-1656.17,0.00013698,2]
[394652095,1763814642004,-1656.17,0.00013698,2]
[394652096,1763814642013,-1656.17,0.00013698,2]
[394652097,1763814642022,-1656.17,0.00013698,2]
[394652098,1763814642031,-1656.17,0.00013698,2]
[394652099,1763814642040,-1656.17,0.00013698,2]
[394652100,1763814642049,-1656.17,0.00013698,2]
[394652101,1763814642058,-1656.17,0.00013698,2]
[394652102,1763814642067,-1656.17,0.00013698,2]
[394652103,1763814642076,-1656.17,0.00013698,2]
[394652104,1763814642085,-1656.17,0.00013698,2]
[394652105,1763814642094,-1656.17,0.00013698,2]
[394652106,1763814642103,-1656.17,0.00013698,2]
[394652107,1763814642111,-1656.17,0.00013698,2]
[394652108,1763814642121,-1656.17,0.00013698,2]
[394652109,1763814642130,-1656.17,0.00013698,2]
[394652110,1763814642141,-1656.17,0.00013698,2]
[394652111,1763814642151,-1656.24228799,0.00013698,2]
[394652112,1763814642161,-500.0,0.00013698,2]
[394652113,1763814642170,-601.24867127,0.00013698,2]
[394652114,1763814642181,-500.0,0.00013698,2]
[394652115,1763814642190,-500.0,0.00013698,2]
[394652116,1763814642200,-500.0,0.00013698,2]
[394652117,1763814642212,-500.0,0.00013698,2]
[394652118,1763814642223,-500.0,0.00013698,2]
[394652120,1763814642233,-500.0,0.00013698,2]
[394652121,1763814642242,-500.0,0.00013698,2]
[394652122,1763814642252,-500.0,0.00013698,2]
[394652123,1763814642261,-500.0,0.00013698,2]
[394652124,1763814642272,-190.64062368,0.00013698,2]
[394652125,1763814642282,-1000.0,0.00013699,2]
[394652126,1763814642291,-1295.72753,0.00013699,2]
[394652127,1763814642301,-36769.7104646,0.00013699,2]
[394652128,1763814642311,-4973.257824,0.00013699,2]
[394652129,1763814642320,-151.0,0.00013699,2]
[394652130,1763814642330,-151.0,0.00013699,2]
[394652131,1763814642339,-151.0,0.00013699,2]
[394652132,1763814642348,-151.0,0.00013699,2]
[394652133,1763814642357,-151.0,0.00013699,2]
[394652134,1763814642368,-151.0,0.00013699,2]
[394652135,1763814642378,-151.0,0.00013699,2]
[394652136,1763814642387,-151.0,0.00013699,2]
[394652137,1763814642397,-151.0,0.00013699,2]
[394652138,1763814642406,-151.0,0.00013699,2]
[394652139,1763814642415,-151.0,0.00013699,2]
[394652140,1763814642425,-151.0,0.00013699,2]
[394652141,1763814642435,-151.0,0.00013699,2]
[394652142,1763814642444,-151.0,0.00013699,2]
[394652143,1763814642453,-220.546099,0.00013699,2]
[394652144,1763814642463,-151.0,0.00013699,2]
[394652145,1763814642471,-151.0,0.00013699,2]
[394652146,1763814642481,-151.0,0.00013699,2]
[394652147,1763814642491,-151.0,0.00013699,2]
[394652148,1763814642500,-151.0,0.00013699,2]
[394652149,1763814642509,-151.0,0.00013699,2]
[394652150,1763814642519,-151.0,0.00013699,2]
[394652151,1763814642528,-151.0,0.00013699,2]
[394652152,1763814642542,-151.0,0.00013699,2]
[394652153,1763814642551,-151.0,0.00013699,2]
[394652154,1763814642560,-151.0,0.00013699,2]
[394652155,1763814642569,-164.17833,0.00013699,2]
[394652156,1763814642579,-151.0,0.00013699,2]
[394652157,1763814642588,-151.0,0.00013699,2]
[394652158,1763814642597,-151.0,0.00013699,2]
[394652159,1763814642610,-151.0,0.00013699,2]
[394652160,1763814642619,-151.0,0.00013699,2]
[394652161,1763814642629,-41.0075912,0.00013699,2]
[394652162,1763814643067,-109.9924088,0.00013699,2]
[394652164,1763814643076,-151.0,0.00013699,2]
[394652166,1763814643086,-262.855281,0.00013699,2]
[394652168,1763814643095,-7564.8695882,0.00013699,2]
[394652169,1763814643106,-500.0,0.00013699,2]
[394652170,1763814643117,-500.0,0.00013699,2]
[394652171,1763814643126,-378.16834465,0.00013699,2]
[394652172,1763814643136,-500.0,0.00013699,2]
[394652173,1763814643145,-500.0,0.00013699,2]
[394652174,1763814643155,-500.64359368,0.00013699,2]
[394652175,1763814643165,-500.0,0.00013699,2]
[394652176,1763814643174,-359.53213839,0.00013699,2]
[394652177,1763814643184,-504.18864587,0.00013699,2]
[394652178,1763814643193,-500.0,0.00013699,2]
[394652179,1763814643202,-500.17342717,0.00013699,2]
[394652180,1763814643211,-500.0,0.00013699,2]
[394652181,1763814643219,-503.09682909,0.00013699,2]
[394652182,1763814643228,-500.0,0.00013699,2]
[394652183,1763814643238,-501.10571369,0.00013699,2]
[394652184,1763814643247,-500.0,0.00013699,2]
[394652185,1763814643255,-500.0,0.00013699,2]
[394652186,1763814643265,-468.9286918,0.00013699,2]
[394652187,1763814643274,-158.0,0.00013699,2]
[394652188,1763814643283,-157.6624,0.00013699,2]
[394652189,1763814643292,-500.0,0.00013699,2]
[394652190,1763814643301,-234.6,0.00013699,2]
[394652191,1763814643310,-158.2,0.00013699,2]
[394652192,1763814643319,-159.186,0.00013699,2]
[394652193,1763814643328,-158.2,0.00013699,2]
[394652194,1763814643337,-158.2,0.00013699,2]
[394652195,1763814643346,-158.2,0.00013699,2]
[394652196,1763814643355,-500.0,0.00013699,2]
[394652197,1763814643364,-486.4,0.00013699,2]
[394652198,1763814643374,-158.2,0.00013699,2]
[394652199,1763814643385,-158.0,0.00013699,2]
[394652200,1763814643395,-500.0,0.00013699,2]
[394652201,1763814643405,-500.0,0.00013699,2]
[394652202,1763814643414,-2000.0,0.00013699,7]
[394652203,1763814643424,-502.47737171,0.00013699,2]
[394652204,1763814643434,-542.69200746,0.00013699,2]
[394652205,1763814643443,-166.10001258,0.00013699,2]
[394652206,1763814643457,-500.0,0.00013699,2]
[394652207,1763814643470,-502.27578178,0.00013699,2]
[394652208,1763814643480,-500.0,0.00013699,2]
[394652209,1763814643491,-500.0,0.00013699,2]
[394652210,1763814643500,-563.20300479,0.00013699,2]
[394652211,1763814643510,-160.0,0.00013699,2]
[394652212,1763814643519,-158.0,0.00013699,2]
[394652213,1763814643529,-158.2,0.00013699,2]
[394652214,1763814643544,-500.0,0.00013699,2]
[394652215,1763814643554,-500.0,0.00013699,2]
[394652216,1763814643563,-199.6,0.00013699,2]
[394652217,1763814643572,-157.528,0.00013699,2]
[394652218,1763814643582,-287.69469042,0.00013699,2]
[394652219,1763814643591,-350.0,0.00013699,2]
[394652220,1763814643600,-196.25345495,0.00013699,2]
[394652221,1763814643610,-158.2,0.00013699,2]
[394652222,1763814643620,-169.4068713,0.00013699,2]
[394652223,1763814643630,-160.0,0.00013699,2]
[394652224,1763814643639,-160.4,0.00013699,2]
[394652225,1763814643649,-160.0,0.00013699,2]
[394652226,1763814643659,-500.0,0.00013699,2]
[394652227,1763814643668,-500.0,0.00013699,2]
[394652228,1763814643678,-500.0,0.00013699,2]
[394652229,1763814643688,-500.0,0.00013699,2]
[394652230,1763814643698,-500.0,0.00013699,2]
[394652231,1763814643707,-500.0,0.00013699,2]
[394652232,1763814643717,-500.0,0.00013699,2]
[394652233,1763814643726,-500.0,0.00013699,2]
[394652234,1763814643736,-500.0,0.00013699,2]
[394652235,1763814643745,-500.0,0.00013699,2]
[394652236,1763814643755,-500.0,0.00013699,2]
[394652237,1763814643764,-165.54285979,0.00013699,2]
[394652238,1763814643773,-504.65361296,0.00013699,2]
[394652239,1763814643783,-500.0,0.00013699,2]
[394652240,1763814643792,-500.0,0.00013699,2]
[394652241,1763814643802,-500.0,0.00013699,2]
[394652242,1763814643811,-500.0,0.00013699,2]
[394652243,1763814643821,-500.0,0.00013699,2]
[394652244,1763814643830,-500.0,0.00013699,2]
[394652245,1763814643839,-500.0,0.00013699,2]
[394652246,1763814643848,-157.47583209,0.00013699,2]
[394652247,1763814643857,-403.69544903,0.00013699,2]
[394652248,1763814643866,-160.0,0.00013699,2]
[394652249,1763814643875,-500.0,0.00013699,2]
[394652250,1763814643884,-500.0,0.00013699,2]
[394652251,1763814643894,-500.0,0.00013699,2]
[394652252,1763814643904,-500.0,0.00013699,2]
[394652253,1763814643914,-500.0,0.00013699,2]
[394652254,1763814643924,-500.0,0.00013699,2]
[394652255,1763814643933,-500.0,0.00013699,2]
[394652256,1763814643942,-500.0,0.00013699,2]
[394652257,1763814643951,-500.0,0.00013699,2]
[394652258,1763814643960,-500.0,0.00013699,2]
[394652259,1763814643969,-500.0,0.00013699,2]
[394652260,1763814643979,-517.65020776,0.00013712,2]
[394652261,1763814643988,-600.0,0.0001372,2]
[394652262,1763814643997,-600.0,0.0001386,2]
[394652263,1763814644008,-5500.0,0.00013862,2]
[394652264,1763814644017,-3426.82252878,0.00013886,2]
[394652265,1763814644026,-153.07017501,0.000139,2]
[394652266,1763814644036,-203.86831681,0.00013972,15]
[394652267,1763814644045,-500.0,0.00013973,2]
[394652268,1763814644054,-554.5606967,0.00014,2]
[394652269,1763814644063,-155.53,0.00014,2]
[394652270,1763814644073,-600.0,0.00014,2]
[394652271,1763814644082,-336.34211331,0.00014012,2]
[394652272,1763814644092,-187.41339255,0.00014012,2]
[394652273,1763814644102,-753.89322883,0.00014019,2]
[394652274,1763814644111,-1040.54758878,0.0001414,2]
[394652275,1763814644121,-2000.0,0.00014183,7]
[394652276,1763814644130,-500.0,0.00014247,2]
[394652277,1763814644140,-1000.0,0.00014247,2]
[394652278,1763814644150,-1002.57780832,0.00014247,2]
[394652279,1763814644159,-1004.46359423,0.00014247,2]
[394652280,1763814644169,-835.04149728,0.00014247,2]
[394652281,1763814644179,-1000.0,0.00014247,2]
[394652282,1763814644187,-1000.0,0.00014247,2]
[394652283,1763814644197,-1000.0,0.00014247,2]
[394652284,1763814644206,-371.56652397,0.00014247,2]
[394652285,1763814644216,-1000.0,0.00014247,2]
[394652286,1763814644225,-1000.0,0.00014247,2]
[394652287,1763814644234,-508.54424109,0.00014247,2]
[394652288,1763814644243,-1000.0,0.00014247,2]
[394652289,1763814644253,-471.41807579,0.00014247,2]
[394652290,1763814644263,-150.70282304,0.00014247,2]
[394652291,1763814644272,-1000.66027534,0.00014247,2]
[394652292,1763814644282,-1000.0,0.00014247,2]
[394652293,1763814644291,-1015.42779846,0.00014247,2]
[394652294,1763814644301,-1000.0,0.00014247,2]
[394652295,1763814644310,-1000.0,0.00014247,2]
[394652296,1763814644320,-507.79219652,0.00014247,2]
[394652297,1763814644329,-1000.0,0.00014247,2]
[394652298,1763814644339,-1000.0,0.00014247,2]
[394652299,1763814644348,-1000.0,0.00014247,2]
[394652300,1763814644358,-1000.0,0.00014247,2]
[394652301,1763814644367,-503.05140633,0.00014247,2]
[394652302,1763814644377,-1000.0,0.00014247,2]
[394652303,1763814644386,-1000.0,0.00014247,2]
[394652304,1763814644395,-1000.0,0.00014247,2]
[394652305,1763814644406,-536.38176573,0.00014247,2]
[394652306,1763814644415,-1000.0,0.00014247,2]
[394652307,1763814644424,-1000.0,0.00014247,2]
[394652308,1763814644433,-1000.0,0.00014247,2]
[394652309,1763814644442,-515.00093592,0.00014247,2]
[394652310,1763814644451,-398.68345667,0.00014247,2]
[394652311,1763814644460,-1000.0,0.00014247,2]
[394652312,1763814644469,-1000.0,0.00014247,2]
[394652313,1763814644479,-260.0,0.00014247,2]
[394652314,1763814644488,-1000.0,0.00014263,2]
[394652315,1763814644497,-244.0,0.00014263,2]
[394652316,1763814644507,-142.20829745,0.0001436,2]
[394652319,1763814645722,-187.42734351,8.503e-05,2]
[394652321,1763814645731,-500.0,0.00013699,2]
[394652322,1763814645740,-373.6076,0.00013699,2]
[394652323,1763814645749,-1076.49732615,0.00014247,2]
[394652324,1763814645759,-88.79170255,0.0001436,2]
[394652325,1763814645768,-500.0,0.00014384,2]
[394652326,1763814645776,-500.0,0.00014384,2]
[394652327,1763814645785,-500.0,0.00014384,2]
[394652329,1763814645794,-500.0,0.00014384,2]
[394652331,1763814645803,-500.0,0.00014384,2]
[394652333,1763814645813,-1455.44742299,0.0001441,2]
[394652335,1763814645822,-203.86831681,0.00014518,16]
[394652337,1763814645831,-500.0,0.00014521,2]
[394652339,1763814645840,-7075.17772618,0.00014521,2]
[394652341,1763814645852,-6149.29011042,0.00014521,2]
[394652343,1763814645861,-2000.0,0.00014668,7]
[394652345,1763814645870,-500.0,0.00014795,2]
[394652346,1763814645879,-1003.69975856,0.00014795,2]
[394652348,1763814645888,-1500.0,0.00014795,2]
[394652350,1763814645897,-1500.0,0.00014795,2]
[394652352,1763814645906,-221.24948218,0.00014795,2]
[394652354,1763814645915,-169.17927863,0.00014795,2]
[394652356,1763814645925,-1502.84615579,0.00014795,2]
[394652358,1763814645934,-1412.42551939,0.00014795,2]
[394652360,1763814645944,-488.08610328,0.00014795,2]
[394652362,1763814645954,-1500.0,0.00014795,2]
[394652364,1763814645963,-502.96903364,0.00014795,2]
[394652366,1763814645972,-948.03294999,0.00014795,2]
[394652367,1763814645981,-1238.73835948,0.00014795,2]
[394652369,1763814645990,-523.7606411,0.00014795,2]
[394652371,1763814646000,-1500.0,0.00014795,2]
[394652373,1763814646009,-1500.0,0.00014795,2]
[394652375,1763814646018,-783.85799207,0.00014795,2]
[394652377,1763814646027,-1500.0,0.00014795,2]
[394652379,1763814646036,-1500.0,0.00014795,2]
[394652381,1763814646045,-744.98569469,0.00014795,2]
[394652383,1763814646054,-501.87819659,0.00014795,2]
[394652385,1763814646063,-1513.30895199,0.00014795,2]
[394652387,1763814646072,-1500.0,0.00014795,2]
[394652389,1763814646082,-360.0,0.00014795,2]
[394652391,1763814646090,-591.642443,0.000149,2]
[394652393,1763814646099,-3182.22,0.00014998,2]
[394652394,1763814646108,-200.42937436,0.00014999,2]
[394652396,1763814646118,-200.60830373,0.00014999,2]
[394652398,1763814646127,-202.0,0.00015,5]
[394652400,1763814646140,-28385.6,0.00015,2]
[394652402,1763814646150,-10534.06311681,0.00015,2]
[394652404,1763814646159,-50000.0,0.00015,2]
[394652406,1763814646168,-1013.21991453,0.00015,2]
[394652408,1763814646177,-3452.08955104,0.00015,2]
[394652409,1763814646186,-528.84401066,0.00015,3]
[394652411,1763814646196,-498.63620047,0.00015,2]
[394652413,1763814646205,-1500.0,0.00015,2]
[394652414,1763814646215,-1500.0,0.00015,2]
[394652415,1763814646224,-1500.0,0.00015,2]
[394652416,1763814646232,-1500.0,0.00015,2]
[394652417,1763814646242,-1500.0,0.00015,2]
[394652418,1763814646251,-1500.0,0.00015,2]
[394652419,1763814646260,-1500.0,0.00015,2]
[394652420,1763814646269,-1536.69,0.00015,2]
[394652421,1763814646278,-1500.0,0.00015,2]
[394652422,1763814646287,-1000.0,0.00015,2]
[394652423,1763814646296,-1500.0,0.00015,2]
[394652424,1763814646306,-1000.0,0.00015,2]
[394652425,1763814646315,-203.86831681,0.00015064,17]
[394652426,1763814646324,-207.8482773,0.00015068,2]
[394652427,1763814646334,-803.16592361,0.00015068,2]
[394652428,1763814646344,-2000.0,0.00015153,7]
[394652429,1763814646353,-100000.0,0.00015174,2]
[394652430,1763814646362,-460.0,0.00015342,2]
[394652431,1763814646371,-1008.47556298,0.00015342,2]
[394652432,1763814646380,-1499.16757831,0.00015342,2]
[394652433,1763814646390,-2000.0,0.00015342,2]
[394652434,1763814646400,-2000.0,0.00015342,2]
[394652435,1763814646409,-992.86822328,0.00015342,2]
[394652436,1763814646419,-2000.0,0.00015342,2]
[394652437,1763814646427,-2000.0,0.00015342,2]
[394652438,1763814646437,-269.55556455,0.00015342,2]
[394652439,1763814646447,-203.86831681,0.0001561,19]
[394652440,1763814646456,-379.8,0.00015616,2]
[394652441,1763814646466,-2000.0,0.00015638,7]
[394652442,1763814646476,-1000.0,0.00015689,2]
[394652443,1763814646485,-492.0,0.00015689,2]
[394652444,1763814646495,-154.259438,0.00015786,2]